[Event "*** Titled Tuesday 3|2 Blitz"]
[Site "Chess.com"]
[Date "2015.12.01"]
[Round "1"]
[White "HansCoolNiemann"]
[Black "adypady02"]
[Result "0-1"]
[WhiteElo "2174"]
[BlackElo "2499"]
[TimeControl "180+2"]
[EndTime "17:11:25 PST"]
[Termination "adypady02 won by resignation"]

1. d4 {[%clk 0:02:56.1]} 1... Nf6 {[%clk 0:03:01]} 2. c4 {[%clk 0:02:56.3]} 2...
g6 {[%clk 0:02:56.4]} 3. Nc3 {[%clk 0:02:55.8]} 3... Bg7 {[%clk 0:02:58]} 4. e4
{[%clk 0:02:49.6]} 4... d6 {[%clk 0:02:59.3]} 5. Nf3 {[%clk 0:02:50.5]} 5... O-O
{[%clk 0:02:57.6]} 6. Be2 {[%clk 0:02:50.4]} 6... e5 {[%clk 0:02:56.5]} 7. dxe5
{[%clk 0:02:51.5]} 7... dxe5 {[%clk 0:02:57.6]} 8. Qxd8 {[%clk 0:02:52.6]} 8...
Rxd8 {[%clk 0:02:59.5]} 9. Bg5 {[%clk 0:02:53.2]} 9... Nbd7 {[%clk 0:02:53.6]}
10. O-O-O {[%clk 0:02:52.4]} 10... Rf8 {[%clk 0:02:12.7]} 11. Ne1 {[%clk
0:02:44.7]} 11... Nc5 {[%clk 0:02:06.4]} 12. f3 {[%clk 0:02:44.1]} 12... Ne6
{[%clk 0:01:56.6]} 13. Be3 {[%clk 0:02:43.3]} 13... c6 {[%clk 0:01:55.8]} 14.
Nc2 {[%clk 0:02:42.6]} 14... Nh5 {[%clk 0:01:50.8]} 15. g3 {[%clk 0:02:40.5]}
15... f5 {[%clk 0:01:47.1]} 16. c5 {[%clk 0:02:36.5]} 16... f4 {[%clk
0:01:36.4]} 17. Bf2 {[%clk 0:02:34.4]} 17... fxg3 {[%clk 0:01:38]} 18. hxg3
{[%clk 0:02:35.4]} 18... Ng5 {[%clk 0:01:39.5]} 19. Rd3 {[%clk 0:02:34.1]} 19...
Be6 {[%clk 0:01:33]} 20. b3 {[%clk 0:02:33.6]} 20... Rf7 {[%clk 0:01:23.6]} 21.
Rhd1 {[%clk 0:02:24.5]} 21... Raf8 {[%clk 0:01:24.5]} 22. Ne1 {[%clk 0:02:24.9]}
22... Nh3 {[%clk 0:01:14.6]} 23. Be3 {[%clk 0:02:18.4]} 23... Nxg3 {[%clk
0:01:15.8]} 24. Rd6 {[%clk 0:02:17.8]} 24... Bc8 {[%clk 0:01:15.2]} 25. Bc4
{[%clk 0:02:15.8]} 25... g5 {[%clk 0:01:03.8]} 26. Rd8 {[%clk 0:02:10.2]} 26...
Bf6 {[%clk 0:00:55.1]} 27. Bxf7+ {[%clk 0:01:50.1]} 27... Kxf7 {[%clk 0:00:57]}
28. Rxf8+ {[%clk 0:01:50.3]} 28... Kxf8 {[%clk 0:00:56.2]} 29. Nd3 {[%clk
0:01:47.1]} 29... h5 {[%clk 0:00:50.9]} 30. Nf2 {[%clk 0:01:40.8]} 30... h4
{[%clk 0:00:45]} 31. Nxh3 {[%clk 0:01:21.6]} 31... Bxh3 {[%clk 0:00:46.9]} 32.
Rg1 {[%clk 0:01:21.5]} 32... Bf1 {[%clk 0:00:43]} 33. Kd2 {[%clk 0:01:18.6]}
33... h3 {[%clk 0:00:39.3]} 34. Rxg3 {[%clk 0:00:47.3]} 34... h2 {[%clk
0:00:40.2]} 35. Rg1 {[%clk 0:00:48.3]} 35... hxg1=Q {[%clk 0:00:41.6]} 36. Bxg1
{[%clk 0:00:49.3]} 36... Kf7 {[%clk 0:00:41.1]} 37. Ke1 {[%clk 0:00:44]} 37...
Bh3 {[%clk 0:00:38.9]} 38. Kf2 {[%clk 0:00:43.2]} 38... Be6 {[%clk 0:00:31.5]}
39. Bh2 {[%clk 0:00:42.5]} 39... Be7 {[%clk 0:00:27.4]} 40. Na4 {[%clk
0:00:41.6]} 40... Kf6 {[%clk 0:00:22]} 41. Ke2 {[%clk 0:00:35.1]} 41... Bh3
{[%clk 0:00:22.9]} 42. b4 {[%clk 0:00:32]} 42... g4 {[%clk 0:00:21.1]} 43. Nb2
{[%clk 0:00:28]} 43... gxf3+ {[%clk 0:00:22.1]} 44. Kxf3 {[%clk 0:00:29.9]}
44... Be6 {[%clk 0:00:18.6]} 45. Nd3 {[%clk 0:00:28.6]} 45... Bxa2 {[%clk
0:00:15.3]} 46. Bxe5+ {[%clk 0:00:27.9]} 46... Kf7 {[%clk 0:00:14.6]} 47. Bc7
{[%clk 0:00:27.1]} 47... Bb1 {[%clk 0:00:11.1]} 48. Ke3 {[%clk 0:00:23.4]} 48...
Ke6 {[%clk 0:00:10.1]} 49. Nf4+ {[%clk 0:00:22.4]} 49... Kd7 {[%clk 0:00:11.3]}
50. Be5 {[%clk 0:00:21]} 50... a5 {[%clk 0:00:12.4]} 51. bxa5 {[%clk 0:00:20.4]}
51... Bxc5+ {[%clk 0:00:13.5]} 52. Bd4 {[%clk 0:00:20.3]} 52... Bb4 {[%clk
0:00:13.9]} 53. Bb6 {[%clk 0:00:21.4]} 53... Bc3 {[%clk 0:00:13.9]} 54. Nd3
{[%clk 0:00:21.1]} 54... Bxd3 {[%clk 0:00:05.3]} 55. Kxd3 {[%clk 0:00:23]} 55...
Be5 {[%clk 0:00:06.9]} 56. Kc4 {[%clk 0:00:21.4]} 56... Kd6 {[%clk 0:00:07.6]}
57. Ba7 {[%clk 0:00:19.7]} 57... Ke6 {[%clk 0:00:08.1]} 58. Be3 {[%clk
0:00:17.5]} 58... Kd7 {[%clk 0:00:08.7]} 59. Bd4 {[%clk 0:00:13.4]} 59... Bc7
{[%clk 0:00:10]} 60. Bc3 {[%clk 0:00:12]} 60... Ke6 {[%clk 0:00:11]} 61. Kc5
{[%clk 0:00:11.3]} 61... Kd7 {[%clk 0:00:11.9]} 62. Bd2 {[%clk 0:00:06.4]} 62...
Bd8 {[%clk 0:00:12.7]} 63. Bf4 {[%clk 0:00:06.3]} 63... Bxa5 {[%clk 0:00:13.4]}
64. Kc4 {[%clk 0:00:07.2]} 64... Bb6 {[%clk 0:00:13.8]} 65. Be5 {[%clk
0:00:07.4]} 65... Ke6 {[%clk 0:00:15]} 66. Bc3 {[%clk 0:00:08.7]} 66... Ba7
{[%clk 0:00:16.4]} 67. Bb4 {[%clk 0:00:08.8]} 67... b5+ {[%clk 0:00:17.9]} 68.
Kd3 {[%clk 0:00:09.5]} 68... c5 {[%clk 0:00:17.8]} 69. Bc3 {[%clk 0:00:10.8]}
69... c4+ {[%clk 0:00:19.2]} 70. Kd2 {[%clk 0:00:11.7]} 70... Bc5 {[%clk
0:00:20.3]} 71. Kc2 {[%clk 0:00:11.5]} 71... b4 {[%clk 0:00:21.3]} 72. Bh8
{[%clk 0:00:12.6]} 72... Bd6 {[%clk 0:00:18.6]} 73. Bc3 {[%clk 0:00:11.2]} 73...
b3+ {[%clk 0:00:16.9]} 74. Kb2 {[%clk 0:00:11.1]} 74... Be5 {[%clk 0:00:18.4]}
75. Bxe5 {[%clk 0:00:10.8]} 75... Kxe5 {[%clk 0:00:20.3]} 0-1

[Event "*** Titled Tuesday 3|2 Blitz"]
[Site "Chess.com"]
[Date "2015.12.01"]
[Round "1"]
[White "pKiLz5Rn9b"]
[Black "flubs"]
[Result "0-1"]
[WhiteElo "2451"]
[BlackElo "2185"]
[TimeControl "180+2"]
[EndTime "17:12:32 PST"]
[Termination "flubs won by resignation"]

1. e4 {[%clk 0:02:55.4]} 1... c6 {[%clk 0:03:00.7]} 2. d4 {[%clk 0:02:54]} 2...
d5 {[%clk 0:03:01.2]} 3. Nc3 {[%clk 0:02:55.4]} 3... dxe4 {[%clk 0:03:02.4]} 4.
Nxe4 {[%clk 0:02:54.2]} 4... Bf5 {[%clk 0:03:03.1]} 5. Ng3 {[%clk 0:02:40.3]}
5... Bg6 {[%clk 0:03:04.1]} 6. h4 {[%clk 0:02:38.9]} 6... h6 {[%clk 0:03:02.7]}
7. Nf3 {[%clk 0:02:38]} 7... Nd7 {[%clk 0:03:03.2]} 8. h5 {[%clk 0:02:30]} 8...
Bh7 {[%clk 0:03:04.2]} 9. Bd3 {[%clk 0:02:31.7]} 9... Bxd3 {[%clk 0:03:05.1]}
10. Qxd3 {[%clk 0:02:33.6]} 10... e6 {[%clk 0:03:06.6]} 11. Bd2 {[%clk
0:02:32.6]} 11... Ngf6 {[%clk 0:03:07.1]} 12. O-O-O {[%clk 0:02:31.6]} 12... Be7
{[%clk 0:03:08.3]} 13. Kb1 {[%clk 0:02:32.1]} 13... Qb6 {[%clk 0:03:05.4]} 14.
Rhe1 {[%clk 0:02:23.1]} 14... O-O {[%clk 0:03:01.6]} 15. Nf5 {[%clk 0:02:15.1]}
15... Bb4 {[%clk 0:02:47.2]} 16. c3 {[%clk 0:01:40.7]} 16... exf5 {[%clk
0:02:26]} 17. cxb4 {[%clk 0:01:41.7]} 17... Qb5 {[%clk 0:02:27.5]} 18. Qxb5
{[%clk 0:01:34]} 18... cxb5 {[%clk 0:02:29.4]} 19. Ne5 {[%clk 0:01:33.1]} 19...
Nb6 {[%clk 0:02:23.4]} 20. Rh1 {[%clk 0:01:31.4]} 20... Rfd8 {[%clk 0:02:14.7]}
21. Bc3 {[%clk 0:01:27.2]} 21... Rac8 {[%clk 0:02:12.2]} 22. f3 {[%clk
0:01:26.8]} 22... Nfd5 {[%clk 0:02:01.8]} 23. Rd3 {[%clk 0:01:27.7]} 23... f6
{[%clk 0:01:43.4]} 24. Ng6 {[%clk 0:01:28.3]} 24... Kf7 {[%clk 0:01:44.8]} 25.
Bd2 {[%clk 0:01:21]} 25... Re8 {[%clk 0:01:41.5]} 26. Nh4 {[%clk 0:00:50.4]}
26... Ne7 {[%clk 0:01:36.1]} 27. Bf4 {[%clk 0:00:47.8]} 27... Nbd5 {[%clk
0:01:30.6]} 28. Bd6 {[%clk 0:00:47.5]} 28... Rc6 {[%clk 0:01:31.9]} 29. Bc5
{[%clk 0:00:46.5]} 29... Nf4 {[%clk 0:01:25.3]} 30. Rd2 {[%clk 0:00:46.2]} 30...
Ned5 {[%clk 0:01:20.8]} 31. g3 {[%clk 0:00:42.3]} 31... Re2 {[%clk 0:01:06.5]}
32. Rhd1 {[%clk 0:00:25.3]} 32... Rxd2 {[%clk 0:00:55.1]} 33. Rxd2 {[%clk
0:00:27.2]} 33... Nxh5 {[%clk 0:00:37.6]} 34. Nxf5 {[%clk 0:00:27.8]} 34... b6
{[%clk 0:00:36.8]} 35. g4 {[%clk 0:00:24.1]} 35... Nhf4 {[%clk 0:00:23.1]} 36.
Bd6 {[%clk 0:00:20.7]} 36... Ne6 {[%clk 0:00:24.2]} 37. Bg3 {[%clk 0:00:19.8]}
37... g6 {[%clk 0:00:21.6]} 38. Nh4 {[%clk 0:00:21.2]} 38... Rc4 {[%clk
0:00:21.6]} 39. a3 {[%clk 0:00:19.4]} 39... Rxd4 {[%clk 0:00:22.4]} 40. Re2
{[%clk 0:00:20.1]} 40... Rd3 {[%clk 0:00:21.8]} 41. Kc2 {[%clk 0:00:19.2]} 41...
Rd4 {[%clk 0:00:22.3]} 42. Bf2 {[%clk 0:00:19.2]} 42... Rc4+ {[%clk 0:00:23.6]}
43. Kd2 {[%clk 0:00:20.7]} 43... Ndf4 {[%clk 0:00:23.9]} 44. Re1 {[%clk
0:00:19.5]} 44... Rc7 {[%clk 0:00:22.9]} 45. Be3 {[%clk 0:00:19.6]} 45... Rd7+
{[%clk 0:00:23.1]} 46. Kc2 {[%clk 0:00:20.9]} 46... Nd5 {[%clk 0:00:20.5]} 47.
Bd2 {[%clk 0:00:21.5]} 47... Ne7 {[%clk 0:00:20.3]} 48. Re3 {[%clk 0:00:14.7]}
48... g5 {[%clk 0:00:20.5]} 49. Ng2 {[%clk 0:00:14.6]} 49... Nd5 {[%clk
0:00:19.1]} 50. Rd3 {[%clk 0:00:14.5]} 50... Ke7 {[%clk 0:00:18.8]} 51. Kd1
{[%clk 0:00:11.9]} 51... Nf8 {[%clk 0:00:12.3]} 52. Rd4 {[%clk 0:00:11.6]} 52...
Ng6 {[%clk 0:00:13.1]} 53. Ke2 {[%clk 0:00:10.5]} 53... Kd6 {[%clk 0:00:13.2]}
54. Kf2 {[%clk 0:00:08.6]} 54... Rc7 {[%clk 0:00:13.9]} 55. Kg3 {[%clk
0:00:08.7]} 55... Rc2 {[%clk 0:00:13.8]} 56. Ne1 {[%clk 0:00:04.9]} 56... Rxb2
{[%clk 0:00:13.6]} 57. Bc1 {[%clk 0:00:06.5]} 57... Ra2 {[%clk 0:00:14.2]} 58.
Nd3 {[%clk 0:00:07.3]} 58... Ke6 {[%clk 0:00:15]} 59. Re4+ {[%clk 0:00:08.4]}
59... Kf7 {[%clk 0:00:16.4]} 60. Rd4 {[%clk 0:00:08.6]} 60... Nc3 {[%clk
0:00:14]} 61. Rd7+ {[%clk 0:00:08.8]} 61... Ke6 {[%clk 0:00:14.4]} 62. Rxa7
{[%clk 0:00:06.8]} 62... Ne5 {[%clk 0:00:13.1]} 63. Nxe5 {[%clk 0:00:06.1]}
63... fxe5 {[%clk 0:00:15]} 64. Be3 {[%clk 0:00:06.5]} 64... Ne2+ {[%clk
0:00:16.2]} 65. Kf2 {[%clk 0:00:07.7]} 65... Nd4+ {[%clk 0:00:15.3]} 66. Kg3
{[%clk 0:00:07.6]} 66... Nc2 {[%clk 0:00:16.4]} 67. Bxb6 {[%clk 0:00:08.5]}
67... Rxa3 {[%clk 0:00:17.5]} 68. Rh7 {[%clk 0:00:08.9]} 68... Nxb4 {[%clk
0:00:16.6]} 69. Rxh6+ {[%clk 0:00:10.5]} 69... Kd5 {[%clk 0:00:18.1]} 70. Bd8
{[%clk 0:00:11.6]} 70... Nc2 {[%clk 0:00:17.9]} 71. Bxg5 {[%clk 0:00:11.8]}
71... Nd4 {[%clk 0:00:18.4]} 72. Rf6 {[%clk 0:00:13]} 72... Rd3 {[%clk
0:00:18.9]} 73. Kf2 {[%clk 0:00:13.3]} 73... b4 {[%clk 0:00:20]} 74. Be3 {[%clk
0:00:14.7]} 74... b3 {[%clk 0:00:20.2]} 75. Rb6 {[%clk 0:00:15.8]} 75... Rc3
{[%clk 0:00:21.3]} 76. g5 {[%clk 0:00:11.6]} 76... Rc2+ {[%clk 0:00:22.2]} 77.
Kg3 {[%clk 0:00:13.1]} 77... Nf5+ {[%clk 0:00:23.2]} 78. Kh3 {[%clk 0:00:11.9]}
78... Nxe3 {[%clk 0:00:24.6]} 79. Rxb3 {[%clk 0:00:13.1]} 79... Kd4 {[%clk
0:00:22.9]} 80. g6 {[%clk 0:00:12.5]} 80... Rc6 {[%clk 0:00:23.8]} 81. g7 {[%clk
0:00:08.6]} 81... Rg6 {[%clk 0:00:24.9]} 82. Rb7 {[%clk 0:00:10.5]} 82... Nf5
{[%clk 0:00:24.4]} 83. Rf7 {[%clk 0:00:07.3]} 83... Nxg7 {[%clk 0:00:24]} 84.
Kh4 {[%clk 0:00:09.2]} 84... Ne6 {[%clk 0:00:22.9]} 85. Kh5 {[%clk 0:00:09.6]}
85... Nf4+ {[%clk 0:00:23.4]} 86. Kh4 {[%clk 0:00:07.2]} 86... Ke3 {[%clk
0:00:23.9]} 87. Rf5 {[%clk 0:00:08.7]} 87... Nd3 {[%clk 0:00:22.8]} 88. Kh5
{[%clk 0:00:07.4]} 88... Rg3 {[%clk 0:00:23.9]} 89. Kh4 {[%clk 0:00:03.9]} 89...
Rxf3 {[%clk 0:00:25]} 90. Rg5 {[%clk 0:00:05.8]} 90... e4 {[%clk 0:00:24.1]} 91.
Kg4 {[%clk 0:00:07.7]} 91... Nf2+ {[%clk 0:00:21.3]} 92. Kh5 {[%clk 0:00:08]}
92... Nh3 {[%clk 0:00:21.8]} 93. Kg6 {[%clk 0:00:09.9]} 93... Nxg5 {[%clk
0:00:22.6]} 0-1

[Event "*** Titled Tuesday 3|2 Blitz"]
[Site "Chess.com"]
[Date "2015.12.01"]
[Round "2"]
[White "jlandaw"]
[Black "Boryboy"]
[Result "0-1"]
[WhiteElo "2349"]
[BlackElo "2522"]
[TimeControl "180+2"]
[EndTime "17:15:51 PST"]
[Termination "Boryboy won by resignation"]

1. e4 {[%clk 0:03:01.9]} 1... e6 {[%clk 0:03:01]} 2. d4 {[%clk 0:03:00]} 2... d5
{[%clk 0:03:02.1]} 3. e5 {[%clk 0:03:01.5]} 3... c5 {[%clk 0:03:02.9]} 4. c3
{[%clk 0:03:03]} 4... Nc6 {[%clk 0:03:04.5]} 5. Nf3 {[%clk 0:03:04.3]} 5... Qb6
{[%clk 0:03:06.1]} 6. Bd3 {[%clk 0:03:05.4]} 6... cxd4 {[%clk 0:03:05.1]} 7.
cxd4 {[%clk 0:03:06.1]} 7... Bd7 {[%clk 0:03:06.4]} 8. O-O {[%clk 0:03:07.2]}
8... Nxd4 {[%clk 0:03:06.5]} 9. Nxd4 {[%clk 0:03:09.1]} 9... Qxd4 {[%clk
0:03:08.4]} 10. Nc3 {[%clk 0:03:10.5]} 10... a6 {[%clk 0:03:09.5]} 11. Qe2
{[%clk 0:03:10.8]} 11... Bc5 {[%clk 0:03:04.1]} 12. Kh1 {[%clk 0:02:38.7]} 12...
Qb4 {[%clk 0:03:02.2]} 13. f4 {[%clk 0:02:33.7]} 13... g6 {[%clk 0:02:57.6]} 14.
f5 {[%clk 0:01:48.4]} 14... gxf5 {[%clk 0:02:56]} 15. Bg5 {[%clk 0:01:49.3]}
15... h6 {[%clk 0:02:41.3]} 16. Bh4 {[%clk 0:01:41.9]} 16... Qxh4 {[%clk
0:02:39.5]} 0-1

[Event "*** Titled Tuesday 3|2 Blitz"]
[Site "Chess.com"]
[Date "2015.12.01"]
[Round "2"]
[White "alex_zapata"]
[Black "Gabrinsky"]
[Result "1/2-1/2"]
[WhiteElo "2168"]
[BlackElo "2350"]
[TimeControl "180+2"]
[EndTime "17:18:29 PST"]
[Termination "Game drawn by agreement"]

1. e4 {[%clk 0:03:01.9]} 1... e6 {[%clk 0:03:01.9]} 2. d4 {[%clk 0:03:02]} 2...
d5 {[%clk 0:03:03.1]} 3. Nd2 {[%clk 0:03:03.6]} 3... a6 {[%clk 0:03:04.2]} 4.
Ngf3 {[%clk 0:03:04.3]} 4... Nf6 {[%clk 0:03:05.2]} 5. Bd3 {[%clk 0:03:04.2]}
5... c5 {[%clk 0:03:06.3]} 6. exd5 {[%clk 0:03:03.7]} 6... Qxd5 {[%clk
0:03:07.1]} 7. O-O {[%clk 0:03:00.6]} 7... Nc6 {[%clk 0:03:08.5]} 8. c4 {[%clk
0:02:58.1]} 8... Qd8 {[%clk 0:03:09.4]} 9. d5 {[%clk 0:02:45.6]} 9... exd5
{[%clk 0:03:09.9]} 10. Re1+ {[%clk 0:02:46.5]} 10... Be7 {[%clk 0:03:10.7]} 11.
cxd5 {[%clk 0:02:42.1]} 11... Nxd5 {[%clk 0:02:56.8]} 12. Nc4 {[%clk 0:02:32.7]}
12... O-O {[%clk 0:02:56.9]} 13. b3 {[%clk 0:02:24.1]} 13... Bf6 {[%clk
0:02:55.4]} 14. Nce5 {[%clk 0:02:20]} 14... Nxe5 {[%clk 0:02:54.3]} 15. Nxe5
{[%clk 0:02:21.9]} 15... Nb4 {[%clk 0:02:33.2]} 16. Bc2 {[%clk 0:02:20.9]} 16...
Qxd1 {[%clk 0:02:31.3]} 17. Bxd1 {[%clk 0:02:22.8]} 17... Re8 {[%clk 0:02:31.7]}
18. Bb2 {[%clk 0:02:21.6]} 18... Bf5 {[%clk 0:02:27.7]} 19. a3 {[%clk
0:02:14.5]} 19... Nc6 {[%clk 0:02:23.4]} 20. f4 {[%clk 0:02:10.5]} 20... Bxe5
{[%clk 0:02:14.7]} 21. fxe5 {[%clk 0:02:10.4]} 21... f6 {[%clk 0:02:16.1]} 22.
Bf3 {[%clk 0:02:08.4]} 22... Nxe5 {[%clk 0:02:10.1]} 23. Bxe5 {[%clk 0:02:06.5]}
23... fxe5 {[%clk 0:02:04]} 24. Bxb7 {[%clk 0:02:07.7]} 24... Rab8 {[%clk
0:02:05.5]} 25. Bxa6 {[%clk 0:02:08.3]} 25... Bc2 {[%clk 0:01:53.4]} 26. Bc4+
{[%clk 0:02:00.5]} 26... Kh8 {[%clk 0:01:54.8]} 27. Rac1 {[%clk 0:02:01.6]}
27... Bxb3 {[%clk 0:01:53.7]} 28. Bxb3 {[%clk 0:02:03.5]} 28... Rxb3 {[%clk
0:01:55.2]} 29. Rxc5 {[%clk 0:02:03.7]} 29... Rxa3 {[%clk 0:01:54]} 30. Rcxe5
{[%clk 0:02:04.4]} 30... Rxe5 {[%clk 0:01:51]} 31. Rxe5 {[%clk 0:02:06.3]} 31...
Kg8 {[%clk 0:01:52.9]} 32. Re7 {[%clk 0:02:06]} 32... Ra2 {[%clk 0:01:52.7]} 33.
h3 {[%clk 0:02:06.1]} 33... h5 {[%clk 0:01:53.8]} 34. h4 {[%clk 0:02:05.5]}
34... Kh7 {[%clk 0:01:54.9]} 35. Re6 {[%clk 0:02:04.4]} 35... g6 {[%clk
0:01:53.7]} 36. Kh2 {[%clk 0:02:03.4]} 36... Kg7 {[%clk 0:01:55]} 37. Rb6 {[%clk
0:02:03]} 37... Ra4 {[%clk 0:01:55.4]} 38. g3 {[%clk 0:02:02.9]} 38... Ra2+
{[%clk 0:01:56.2]} 39. Kh3 {[%clk 0:02:02.1]} 39... Ra1 {[%clk 0:01:58.1]} 40.
Kg2 {[%clk 0:02:02.8]} 40... Kh6 {[%clk 0:01:59.2]} 41. Rc6 {[%clk 0:02:01.9]}
41... Ra4 {[%clk 0:01:59.7]} 42. Rb6 {[%clk 0:02:02.2]} 42... Kg7 {[%clk
0:02:01.2]} 43. Rc6 {[%clk 0:02:02.7]} 43... Ra5 {[%clk 0:02:02.6]} 44. Rb6
{[%clk 0:02:03.5]} 44... g5 {[%clk 0:02:02.5]} 45. hxg5 {[%clk 0:02:03.7]} 45...
Rxg5 {[%clk 0:02:04.4]} 46. Kh3 {[%clk 0:02:04.8]} 46... Rd5 {[%clk 0:02:02.7]}
47. Kh4 {[%clk 0:02:04.5]} 47... Kh7 {[%clk 0:02:02.1]} 48. Rb7+ {[%clk
0:02:03.3]} 48... Kg6 {[%clk 0:02:03.1]} 49. Rb6+ {[%clk 0:02:04.6]} 49... Kg7
{[%clk 0:02:02.7]} 50. Rb7+ {[%clk 0:02:04.8]} 50... Kf6 {[%clk 0:02:04.1]} 51.
Rb6+ {[%clk 0:02:06.2]} 51... Kg7 {[%clk 0:02:04.7]} 52. Rb7+ {[%clk 0:02:06.9]}
1/2-1/2

[Event "*** Titled Tuesday 3|2 Blitz"]
[Site "Chess.com"]
[Date "2015.12.01"]
[Round "2"]
[White "ZEN-22"]
[Black "BellJackson95"]
[Result "0-1"]
[WhiteElo "2260"]
[BlackElo "2175"]
[TimeControl "180+2"]
[EndTime "17:19:01 PST"]
[Termination "BellJackson95 won by resignation"]

1. d4 {[%clk 0:03:01.9]} 1... Nf6 {[%clk 0:02:59.7]} 2. Nc3 {[%clk 0:03:03]}
2... d5 {[%clk 0:02:56.4]} 3. Bg5 {[%clk 0:03:03.9]} 3... c5 {[%clk 0:02:54.9]}
4. dxc5 {[%clk 0:03:02.4]} 4... d4 {[%clk 0:02:52.9]} 5. Bxf6 {[%clk 0:02:55]}
5... exf6 {[%clk 0:02:52.9]} 6. Ne4 {[%clk 0:02:56.3]} 6... f5 {[%clk
0:02:46.6]} 7. Nd6+ {[%clk 0:02:56.6]} 7... Bxd6 {[%clk 0:02:46.2]} 8. cxd6
{[%clk 0:02:55.1]} 8... Qxd6 {[%clk 0:02:46.8]} 9. Qd2 {[%clk 0:02:56.5]} 9...
Nc6 {[%clk 0:02:46]} 10. Nf3 {[%clk 0:02:56.8]} 10... O-O {[%clk 0:02:45.9]} 11.
O-O-O {[%clk 0:02:56.9]} 11... Rd8 {[%clk 0:02:45.9]} 12. e3 {[%clk 0:02:42.9]}
12... Qd5 {[%clk 0:02:31.6]} 13. Kb1 {[%clk 0:02:37.9]} 13... Be6 {[%clk
0:02:29.9]} 14. b3 {[%clk 0:02:29.4]} 14... dxe3 {[%clk 0:02:23.4]} 15. Qxd5
{[%clk 0:02:29.6]} 15... Rxd5 {[%clk 0:02:22.4]} 16. Rxd5 {[%clk 0:02:29.8]}
16... Bxd5 {[%clk 0:02:21.6]} 17. fxe3 {[%clk 0:02:31.7]} 17... Re8 {[%clk
0:02:21.5]} 18. Bd3 {[%clk 0:02:32.3]} 18... Rxe3 {[%clk 0:01:53.5]} 19. Bxf5
{[%clk 0:02:32.6]} 19... g6 {[%clk 0:01:49.8]} 20. Bc8 {[%clk 0:02:29.6]} 20...
Ne7 {[%clk 0:01:42]} 21. Bh3 {[%clk 0:02:27.6]} 21... Re2 {[%clk 0:01:36.6]} 22.
Rd1 {[%clk 0:02:23.3]} 22... Be4 {[%clk 0:01:35.4]} 23. Rd2 {[%clk 0:02:13.3]}
23... Bxf3 {[%clk 0:01:32.6]} 24. Rd8+ {[%clk 0:02:13.4]} 24... Kg7 {[%clk
0:01:29.4]} 25. gxf3 {[%clk 0:02:15.3]} 25... Rxh2 {[%clk 0:01:30.1]} 26. Rd7
{[%clk 0:01:44.1]} 26... Rxh3 {[%clk 0:01:20]} 27. Rxe7 {[%clk 0:01:44.6]} 27...
Rxf3 {[%clk 0:01:21.3]} 28. Rxb7 {[%clk 0:01:45.9]} 28... h5 {[%clk 0:01:22.4]}
29. Rb4 {[%clk 0:01:40.5]} 29... g5 {[%clk 0:01:19.8]} 30. c4 {[%clk 0:01:37.3]}
30... h4 {[%clk 0:01:19.8]} 31. c5 {[%clk 0:01:36]} 31... h3 {[%clk 0:01:20.3]}
32. Rg4 {[%clk 0:01:32.4]} 32... h2 {[%clk 0:01:11.2]} 0-1

[Event "*** Titled Tuesday 3|2 Blitz"]
[Site "Chess.com"]
[Date "2015.12.01"]
[Round "2"]
[White "LoggiaFelixdaMaria"]
[Black "UltimateCrusher2"]
[Result "1-0"]
[WhiteElo "2090"]
[BlackElo "2025"]
[TimeControl "180+2"]
[EndTime "17:19:26 PST"]
[Termination "LoggiaFelixdaMaria won by resignation"]

1. d4 {[%clk 0:03:01.9]} 1... b6 {[%clk 0:03:01.8]} 2. e4 {[%clk 0:03:02.4]}
2... Bb7 {[%clk 0:03:03.4]} 3. Bd3 {[%clk 0:03:04]} 3... e6 {[%clk 0:03:02.7]}
4. Nf3 {[%clk 0:03:05]} 4... c5 {[%clk 0:03:02.7]} 5. O-O {[%clk 0:03:05.1]}
5... cxd4 {[%clk 0:02:53.1]} 6. Nxd4 {[%clk 0:03:05.6]} 6... d6 {[%clk
0:02:46.1]} 7. Nc3 {[%clk 0:03:06.3]} 7... Nf6 {[%clk 0:02:46.2]} 8. Kh1 {[%clk
0:03:07.4]} 8... g6 {[%clk 0:02:43.7]} 9. f4 {[%clk 0:03:08.2]} 9... Nbd7 {[%clk
0:02:43]} 10. Bd2 {[%clk 0:03:08.5]} 10... Bg7 {[%clk 0:02:43.6]} 11. f5 {[%clk
0:02:59.2]} 11... e5 {[%clk 0:02:31.3]} 12. Ndb5 {[%clk 0:02:44]} 12... Nc5
{[%clk 0:02:30.3]} 13. Bg5 {[%clk 0:02:43.4]} 13... a6 {[%clk 0:02:28.2]} 14.
Bxf6 {[%clk 0:02:43.8]} 14... Bxf6 {[%clk 0:02:27.6]} 15. Na3 {[%clk 0:02:41]}
15... O-O {[%clk 0:02:20.4]} 16. Qe2 {[%clk 0:02:36.9]} 16... b5 {[%clk
0:02:18.3]} 17. b4 {[%clk 0:02:35.8]} 17... Nd7 {[%clk 0:02:16.2]} 18. Nab1
{[%clk 0:02:33.9]} 18... Nb6 {[%clk 0:02:16.6]} 19. a4 {[%clk 0:02:34.5]} 19...
bxa4 {[%clk 0:02:10.4]} 20. Nxa4 {[%clk 0:02:34.1]} 20... Nxa4 {[%clk
0:02:11.7]} 21. Rxa4 {[%clk 0:02:35.4]} 21... d5 {[%clk 0:02:12.9]} 22. Nd2
{[%clk 0:02:34.2]} 22... Bg5 {[%clk 0:01:33.7]} 23. Nf3 {[%clk 0:02:26]} 23...
Bf6 {[%clk 0:01:33.6]} 24. c4 {[%clk 0:02:20]} 24... dxc4 {[%clk 0:01:23.7]} 25.
Bxc4 {[%clk 0:02:20.3]} 25... Qd7 {[%clk 0:01:23.4]} 26. Ra5 {[%clk 0:02:17.8]}
26... Rae8 {[%clk 0:01:19]} 27. Bxa6 {[%clk 0:02:16.1]} 27... Bd8 {[%clk
0:01:20.1]} 28. Raa1 {[%clk 0:02:09.8]} 28... Bxa6 {[%clk 0:01:21.3]} 29. Rxa6
{[%clk 0:02:09.8]} 29... gxf5 {[%clk 0:01:22]} 30. Nh4 {[%clk 0:02:10.2]} 30...
Bxh4 {[%clk 0:01:20.4]} 31. Qh5 {[%clk 0:02:04.7]} 31... Qd3 {[%clk 0:01:11.9]}
32. Rfa1 {[%clk 0:01:56.7]} 32... Qxe4 {[%clk 0:01:11.3]} 33. Rh6 {[%clk
0:01:54.5]} 33... Qd4 {[%clk 0:00:44.4]} 34. Rg1 {[%clk 0:01:47.3]} 34... Bg5
{[%clk 0:00:28.9]} 35. Qxg5+ {[%clk 0:01:45.2]} 35... Kh8 {[%clk 0:00:30.2]} 36.
Qxf5 {[%clk 0:01:44.9]} 1-0